[Event "Titled Tuesday Blitz December 14 2021"]
[White "Nakamura, Hikaru"]
[Black "Holt, Conrad"]
[WhiteFideId "2016192"]
[BlackFideId "2034387"]
[WhiteElo "2884"]
[BlackElo "2586"]
[Result "1/2-1/2"]
[Round "10"]
[TimeControl "180+1"]
[Date "2021.12.14"]
[WhiteClock "0:00:21"]
[BlackClock "0:00:06"]

1. e4 {[%clk 0:03:00]}  e6 {[%clk 0:03:00]} 2. d3 {[%clk 0:02:56]}  d5 {[%clk 0:03:00]} 3. Nd2 {[%clk 0:02:56]}  Bd6 {[%clk 0:02:57]} 4. Ngf3 {[%clk 0:02:56]}  c5 {[%clk 0:02:57]} 5. g3 {[%clk 0:02:55]}  Nc6 {[%clk 0:02:57]} 6. Bg2 {[%clk 0:02:55]}  Nge7 {[%clk 0:02:57]} 7. O-O {[%clk 0:02:56]}  O-O {[%clk 0:02:58]} 8. Re1 {[%clk 0:02:54]}  Qc7 {[%clk 0:02:58]} 9. b3 {[%clk 0:02:48]}  Bd7 {[%clk 0:02:50]} 10. Bb2 {[%clk 0:02:47]}  Ng6 {[%clk 0:02:49]} 11. h4 {[%clk 0:02:36]}  d4 {[%clk 0:02:18]} 12. c3 {[%clk 0:02:34]}  dxc3 {[%clk 0:02:15]} 13. Bxc3 {[%clk 0:02:34]}  Nge5 {[%clk 0:02:14]} 14. Qc2 {[%clk 0:02:30]}  Rfd8 {[%clk 0:02:10]} 15. Rac1 {[%clk 0:02:28]}  Be8 {[%clk 0:02:07]} 16. Rcd1 {[%clk 0:01:55]}  Nb4 {[%clk 0:01:57]} 17. Bxb4 {[%clk 0:01:47]}  cxb4 {[%clk 0:01:58]} 18. Qxc7 {[%clk 0:01:45]}  Bxc7 {[%clk 0:01:59]} 19. d4 {[%clk 0:01:44]}  Ng4 {[%clk 0:01:52]} 20. Nc4 {[%clk 0:01:38]}  Rac8 {[%clk 0:01:47]} 21. Bh3 {[%clk 0:01:35]}  h5 {[%clk 0:01:46]} 22. d5 {[%clk 0:01:34]}  b5 {[%clk 0:01:40]} 23. Ne3 {[%clk 0:01:31]}  Nxe3 {[%clk 0:01:34]} 24. Rxe3 {[%clk 0:01:32]}  Rb8 {[%clk 0:01:27]} 25. Red3 {[%clk 0:01:27]}  exd5 {[%clk 0:01:24]} 26. exd5 {[%clk 0:01:28]}  Rd6 {[%clk 0:01:16]} 27. Ng5 {[%clk 0:01:23]}  Bd7 {[%clk 0:01:03]} 28. Bxd7 {[%clk 0:01:21]}  Rxd7 {[%clk 0:01:03]} 29. Ne4 {[%clk 0:01:16]}  Re8 {[%clk 0:01:02]} 30. Nd2 {[%clk 0:01:08]}  Bb6 {[%clk 0:00:54]} 31. Kf1 {[%clk 0:01:07]}  Re5 {[%clk 0:00:52]} 32. Nf3 {[%clk 0:01:07]}  Rf5 {[%clk 0:00:53]} 33. R1d2 {[%clk 0:01:02]}  Kf8 {[%clk 0:00:53]} 34. Ne1 {[%clk 0:00:54]}  Ke7 {[%clk 0:00:51]} 35. d6+ {[%clk 0:00:53]}  Kd8 {[%clk 0:00:48]} 36. Ng2 {[%clk 0:00:52]}  g6 {[%clk 0:00:41]} 37. Nf4 {[%clk 0:00:52]}  Kc8 {[%clk 0:00:40]} 38. Nd5 {[%clk 0:00:50]}  Kb7 {[%clk 0:00:28]} 39. Nxb4 {[%clk 0:00:50]}  Ba5 {[%clk 0:00:21]} 40. a3 {[%clk 0:00:50]}  Bxb4 {[%clk 0:00:18]} 41. axb4 {[%clk 0:00:51]}  Kc6 {[%clk 0:00:18]} 42. Rc2+ {[%clk 0:00:41]}  Kb6 {[%clk 0:00:19]} 43. Rc8 {[%clk 0:00:41]}  Rf6 {[%clk 0:00:18]} 44. Rb8+ {[%clk 0:00:41]}  Kc6 {[%clk 0:00:17]} 45. Rc3+ {[%clk 0:00:41]}  Kxd6 {[%clk 0:00:17]} 46. Rxb5 {[%clk 0:00:41]}  Ke7 {[%clk 0:00:16]} 47. Ra5 {[%clk 0:00:41]}  Rb6 {[%clk 0:00:15]} 48. Rc4 {[%clk 0:00:41]}  Ke6 {[%clk 0:00:14]} 49. Ke2 {[%clk 0:00:41]}  Rbd6 {[%clk 0:00:14]} 50. Re4+ {[%clk 0:00:39]}  Kf6 {[%clk 0:00:14]} 51. Re3 {[%clk 0:00:39]}  Rd2+ {[%clk 0:00:14]} 52. Kf3 {[%clk 0:00:38]}  R2d4 {[%clk 0:00:15]} 53. Rb5 {[%clk 0:00:38]}  R4d5 {[%clk 0:00:14]} 54. Rb8 {[%clk 0:00:37]}  Rd4 {[%clk 0:00:07]} 55. Kg2 {[%clk 0:00:35]}  Kg7 {[%clk 0:00:06]} 56. Rc3 {[%clk 0:00:34]}  Kf6 {[%clk 0:00:06]} 57. Rc4 {[%clk 0:00:31]}  Rd3 {[%clk 0:00:06]} 58. Rbc8 {[%clk 0:00:23]}  Rxb3 {[%clk 0:00:05]} 59. R8c7 {[%clk 0:00:21]}  Rxc7 {[%clk 0:00:06]} 60. Rxc7 {[%clk 0:00:21]}  Rxb4 {[%clk 0:00:06]} 61. Rxa7 {[%clk 0:00:21]}  Rb6 {[%clk 0:00:06]} 62. Ra2 {[%clk 0:00:21]}  Rc6 {[%clk 0:00:06]} 1/2-1/2


[Site "https://www.chess.com"]

[Event "Titled Tuesday Blitz December 14 2021"]
[White "Rakhmanov, Aleksandr"]
[Black "Nesterov, Arseniy"]
[WhiteFideId "4173708"]
[BlackFideId "24198455"]
[WhiteElo "2500"]
[BlackElo "2489"]
[Result "1-0"]
[Round "10"]
[TimeControl "180+1"]
[Date "2021.12.14"]
[WhiteClock "0:00:02"]
[BlackClock "0:00:02"]

1. d4 {[%clk 0:02:58]}  d5 {[%clk 0:02:59]} 2. c4 {[%clk 0:02:57]}  e6 {[%clk 0:02:59]} 3. Nc3 {[%clk 0:02:56]}  c5 {[%clk 0:02:58]} 4. cxd5 {[%clk 0:02:54]}  exd5 {[%clk 0:02:59]} 5. Nf3 {[%clk 0:02:55]}  Nc6 {[%clk 0:02:59]} 6. Bg5 {[%clk 0:02:55]}  Nf6 {[%clk 0:02:35]} 7. e3 {[%clk 0:02:48]}  Be6 {[%clk 0:02:22]} 8. Bb5 {[%clk 0:02:38]}  Be7 {[%clk 0:02:19]} 9. dxc5 {[%clk 0:02:34]}  Bxc5 {[%clk 0:02:19]} 10. Nd4 {[%clk 0:02:31]}  Rc8 {[%clk 0:01:44]} 11. O-O {[%clk 0:02:12]}  O-O {[%clk 0:01:41]} 12. Bxc6 {[%clk 0:02:03]}  bxc6 {[%clk 0:01:40]} 13. Qa4 {[%clk 0:02:01]}  Bd7 {[%clk 0:01:32]} 14. Rac1 {[%clk 0:01:38]}  Bb6 {[%clk 0:01:16]} 15. Qd1 {[%clk 0:01:34]}  h6 {[%clk 0:01:14]} 16. Bh4 {[%clk 0:01:34]}  Qe7 {[%clk 0:01:01]} 17. Nce2 {[%clk 0:01:02]}  Qe5 {[%clk 0:00:52]} 18. Bg3 {[%clk 0:00:53]}  Qh5 {[%clk 0:00:43]} 19. b4 {[%clk 0:00:50]}  Ne4 {[%clk 0:00:40]} 20. Nf4 {[%clk 0:00:48]}  Qxd1 {[%clk 0:00:37]} 21. Rfxd1 {[%clk 0:00:49]}  g5 {[%clk 0:00:21]} 22. Nd3 {[%clk 0:00:47]}  f6 {[%clk 0:00:19]} 23. Nc5 {[%clk 0:00:44]}  Bxc5 {[%clk 0:00:06]} 24. bxc5 {[%clk 0:00:45]}  Nxg3 {[%clk 0:00:07]} 25. hxg3 {[%clk 0:00:45]}  Rb8 {[%clk 0:00:08]} 26. Rb1 {[%clk 0:00:45]}  Kf7 {[%clk 0:00:08]} 27. Rb3 {[%clk 0:00:44]}  Ke7 {[%clk 0:00:06]} 28. Rdb1 {[%clk 0:00:44]}  Rxb3 {[%clk 0:00:06]} 29. axb3 {[%clk 0:00:35]}  Rb8 {[%clk 0:00:05]} 30. Ra1 {[%clk 0:00:35]}  Rb7 {[%clk 0:00:05]} 31. Ra6 {[%clk 0:00:36]}  h5 {[%clk 0:00:01]} 32. Kf1 {[%clk 0:00:36]}  Ke8 {[%clk 0:00:01]} 33. Ke1 {[%clk 0:00:36]}  h4 {[%clk 0:00:02]} 34. gxh4 {[%clk 0:00:36]}  gxh4 {[%clk 0:00:03]} 35. Kd2 {[%clk 0:00:36]}  Kd8 {[%clk 0:00:03]} 36. Kc3 {[%clk 0:00:36]}  Kc7 {[%clk 0:00:04]} 37. Ra1 {[%clk 0:00:35]}  Kb8 {[%clk 0:00:02]} 38. Rh1 {[%clk 0:00:35]}  h3 {[%clk 0:00:02]} 39. gxh3 {[%clk 0:00:35]}  Rc7 {[%clk 0:00:01]} 40. h4 {[%clk 0:00:36]}  Rc8 {[%clk 0:00:02]} 41. h5 {[%clk 0:00:36]}  Rh8 {[%clk 0:00:03]} 42. h6 {[%clk 0:00:36]}  Rh7 {[%clk 0:00:04]} 43. b4 {[%clk 0:00:34]}  Kc7 {[%clk 0:00:04]} 44. Ne2 {[%clk 0:00:31]}  Bf5 {[%clk 0:00:04]} 45. Nf4 {[%clk 0:00:27]}  Kd7 {[%clk 0:00:04]} 46. Ne2 {[%clk 0:00:23]}  Be4 {[%clk 0:00:03]} 47. Rh2 {[%clk 0:00:23]}  Ke6 {[%clk 0:00:03]} 48. Nd4+ {[%clk 0:00:23]}  Kd7 {[%clk 0:00:03]} 49. f3 {[%clk 0:00:22]}  Bb1 {[%clk 0:00:04]} 50. Rh1 {[%clk 0:00:21]}  Bg6 {[%clk 0:00:03]} 51. Ra1 {[%clk 0:00:21]}  Rxh6 {[%clk 0:00:03]} 52. Rxa7+ {[%clk 0:00:21]}  Kc8 {[%clk 0:00:04]} 53. Nxc6 {[%clk 0:00:21]}  Bh5 {[%clk 0:00:03]} 54. b5 {[%clk 0:00:18]}  Bxf3 {[%clk 0:00:03]} 55. b6 {[%clk 0:00:18]}  d4+ {[%clk 0:00:03]} 56. Nxd4 {[%clk 0:00:17]}  Bd5 {[%clk 0:00:03]} 57. c6 {[%clk 0:00:15]}  f5 {[%clk 0:00:02]} 58. Ra8# {[%clk 0:00:02]} 1-0


[Site "https://www.chess.com"]

[Event "Titled Tuesday Blitz December 14 2021"]
[White "Urazayev, Arystanbek"]
[Black "Acor, Corey"]
[WhiteFideId "13709810"]
[BlackFideId "2024861"]
[WhiteElo "2321"]
[BlackElo "2303"]
[Result "1-0"]
[Round "10"]
[TimeControl "180+1"]
[Date "2021.12.14"]
[WhiteClock "0:02:29"]
[BlackClock "0:01:57"]

1. d4 {[%clk 0:03:00]}  Nf6 {[%clk 0:02:57]} 2. c4 {[%clk 0:03:01]}  e5 {[%clk 0:02:57]} 3. dxe5 {[%clk 0:03:01]}  Ng4 {[%clk 0:02:58]} 4. Nf3 {[%clk 0:03:01]}  Nc6 {[%clk 0:02:59]} 5. Bf4 {[%clk 0:03:00]}  Bb4+ {[%clk 0:02:59]} 6. Nbd2 {[%clk 0:02:59]}  Qe7 {[%clk 0:02:59]} 7. e3 {[%clk 0:02:59]}  Ngxe5 {[%clk 0:02:59]} 8. Nxe5 {[%clk 0:03:00]}  Nxe5 {[%clk 0:03:00]} 9. Be2 {[%clk 0:03:00]}  d6 {[%clk 0:03:01]} 10. O-O {[%clk 0:03:00]}  O-O {[%clk 0:02:59]} 11. Nb1 {[%clk 0:02:54]}  Bc5 {[%clk 0:02:53]} 12. Nc3 {[%clk 0:02:54]}  c6 {[%clk 0:02:51]} 13. Ne4 {[%clk 0:02:48]}  Bf5 {[%clk 0:02:46]} 14. Nxc5 {[%clk 0:02:47]}  dxc5 {[%clk 0:02:47]} 15. Qd2 {[%clk 0:02:44]}  Rfd8 {[%clk 0:02:45]} 16. Qc3 {[%clk 0:02:44]}  Ng6 {[%clk 0:02:33]} 17. Bg3 {[%clk 0:02:42]}  Rd7 {[%clk 0:02:34]} 18. Rfd1 {[%clk 0:02:41]}  Rad8 {[%clk 0:02:34]} 19. Rxd7 {[%clk 0:02:40]}  Qxd7 {[%clk 0:02:34]} 20. h4 {[%clk 0:02:40]}  Qd2 {[%clk 0:02:32]} 21. Rd1 {[%clk 0:02:36]}  Qxd1+ {[%clk 0:02:18]} 22. Bxd1 {[%clk 0:02:37]}  Rxd1+ {[%clk 0:02:19]} 23. Kh2 {[%clk 0:02:37]}  h5 {[%clk 0:02:20]} 24. Qa5 {[%clk 0:02:34]}  a6 {[%clk 0:02:08]} 25. Qxc5 {[%clk 0:02:33]}  Be6 {[%clk 0:01:59]} 26. b3 {[%clk 0:02:30]}  Nf8 {[%clk 0:01:57]} 27. Qxh5 {[%clk 0:02:30]}  Nd7 {[%clk 0:01:57]} 28. Qxd1 {[%clk 0:02:29]} 1-0


[Site "https://www.chess.com"]

[Event "Titled Tuesday Blitz December 14 2021"]
[White "Weetik, Vjacheslav"]
[Black "Zhigalko, Sergei"]
[WhiteFideId "4153472"]
[BlackFideId "13502956"]
[WhiteElo "2469"]
[BlackElo "2662"]
[Result "0-1"]
[Round "10"]
[TimeControl "180+1"]
[Date "2021.12.14"]
[WhiteClock "0:00:08"]
[BlackClock "0:00:13"]

1. d4 {[%clk 0:02:52]}  Nf6 {[%clk 0:03:00]} 2. Nf3 {[%clk 0:02:51]}  e6 {[%clk 0:03:00]} 3. Bf4 {[%clk 0:02:48]}  d5 {[%clk 0:02:57]} 4. Nbd2 {[%clk 0:02:44]}  Bd6 {[%clk 0:02:57]} 5. e3 {[%clk 0:02:44]}  O-O {[%clk 0:02:57]} 6. Bd3 {[%clk 0:02:43]}  b6 {[%clk 0:02:52]} 7. O-O {[%clk 0:02:33]}  Bb7 {[%clk 0:02:41]} 8. Bg5 {[%clk 0:02:30]}  Be7 {[%clk 0:02:35]} 9. Qe2 {[%clk 0:02:25]}  c5 {[%clk 0:02:35]} 10. c3 {[%clk 0:02:24]}  Nc6 {[%clk 0:02:35]} 11. Ba6 {[%clk 0:02:20]}  Qc8 {[%clk 0:02:27]} 12. Bxb7 {[%clk 0:02:19]}  Qxb7 {[%clk 0:02:28]} 13. Rfd1 {[%clk 0:02:10]}  Rfd8 {[%clk 0:02:28]} 14. h3 {[%clk 0:02:09]}  Rac8 {[%clk 0:02:27]} 15. Rab1 {[%clk 0:01:57]}  h6 {[%clk 0:02:25]} 16. Bf4 {[%clk 0:01:55]}  b5 {[%clk 0:02:18]} 17. a3 {[%clk 0:01:51]}  a5 {[%clk 0:02:16]} 18. Ne5 {[%clk 0:01:51]}  b4 {[%clk 0:02:13]} 19. Ndf3 {[%clk 0:01:27]}  Ne4 {[%clk 0:01:52]} 20. axb4 {[%clk 0:01:25]}  cxb4 {[%clk 0:01:49]} 21. Nxc6 {[%clk 0:01:19]}  Rxc6 {[%clk 0:01:47]} 22. Ne5 {[%clk 0:01:19]}  Rcc8 {[%clk 0:01:42]} 23. Qh5 {[%clk 0:00:47]}  Bf8 {[%clk 0:01:30]} 24. cxb4 {[%clk 0:00:46]}  axb4 {[%clk 0:01:21]} 25. Rbc1 {[%clk 0:00:46]}  b3 {[%clk 0:01:20]} 26. f3 {[%clk 0:00:33]}  Nf6 {[%clk 0:01:15]} 27. Qh4 {[%clk 0:00:32]}  g5 {[%clk 0:01:06]} 28. Bxg5 {[%clk 0:00:32]}  hxg5 {[%clk 0:01:07]} 29. Qxg5+ {[%clk 0:00:33]}  Bg7 {[%clk 0:01:08]} 30. h4 {[%clk 0:00:28]}  Nh7 {[%clk 0:00:38]} 31. Qg3 {[%clk 0:00:25]}  Kh8 {[%clk 0:00:29]} 32. Rc5 {[%clk 0:00:21]}  Rxc5 {[%clk 0:00:18]} 33. dxc5 {[%clk 0:00:21]}  Rc8 {[%clk 0:00:19]} 34. c6 {[%clk 0:00:20]}  Qc7 {[%clk 0:00:19]} 35. f4 {[%clk 0:00:08]}  Bxe5 {[%clk 0:00:19]} 36. fxe5 {[%clk 0:00:09]}  Qxc6 {[%clk 0:00:19]} 37. Qf4 {[%clk 0:00:10]}  Rg8 {[%clk 0:00:14]} 38. Rd2 {[%clk 0:00:08]}  Qc1+ {[%clk 0:00:13]} 0-1


[Site "https://www.chess.com"]

[Event "Titled Tuesday Blitz December 14 2021"]
[White "Aggelis, Nikolaos"]
[Black "Erdogdu, Mert"]
[WhiteFideId "4213220"]
[BlackFideId "6301495"]
[WhiteElo "2154"]
[BlackElo "2485"]
[Result "0-1"]
[Round "11"]
[TimeControl "180+1"]
[Date "2021.12.14"]
[WhiteClock "0:02:27"]
[BlackClock "0:02:28"]

1. d4 {[%clk 0:03:00]}  d5 {[%clk 0:02:59]} 2. Nf3 {[%clk 0:02:57]}  e6 {[%clk 0:02:58]} 3. g3 {[%clk 0:02:57]}  c5 {[%clk 0:02:58]} 4. Bg2 {[%clk 0:02:57]}  Nf6 {[%clk 0:02:58]} 5. O-O {[%clk 0:02:57]}  Nc6 {[%clk 0:02:58]} 6. c4 {[%clk 0:02:58]}  Be7 {[%clk 0:02:58]} 7. cxd5 {[%clk 0:02:58]}  exd5 {[%clk 0:02:59]} 8. dxc5 {[%clk 0:02:58]}  Bxc5 {[%clk 0:02:59]} 9. Bg5 {[%clk 0:02:52]}  O-O {[%clk 0:02:57]} 10. Nc3 {[%clk 0:02:50]}  d4 {[%clk 0:02:48]} 11. Ne4 {[%clk 0:02:47]}  Be7 {[%clk 0:02:48]} 12. Nxf6+ {[%clk 0:02:48]}  Bxf6 {[%clk 0:02:49]} 13. Bxf6 {[%clk 0:02:48]}  Qxf6 {[%clk 0:02:49]} 14. Qd2 {[%clk 0:02:48]}  Bg4 {[%clk 0:02:48]} 15. h3 {[%clk 0:02:44]}  Bh5 {[%clk 0:02:46]} 16. Rfd1 {[%clk 0:02:42]}  Rad8 {[%clk 0:02:46]} 17. Rac1 {[%clk 0:02:39]}  Rfe8 {[%clk 0:02:40]} 18. a3 {[%clk 0:02:34]}  d3 {[%clk 0:02:34]} 19. g4 {[%clk 0:02:27]}  dxe2 {[%clk 0:02:28]} 0-1


[Site "https://www.chess.com"]

[Event "Titled Tuesday Blitz December 14 2021"]
[White "Azadaliyev, Jahandar"]
[Black "Vidit, Santosh Gujrathi"]
[WhiteFideId "13425811"]
[BlackFideId "5029465"]
[WhiteElo "1795"]
[BlackElo "2628"]
[Result "0-1"]
[Round "11"]
[TimeControl "180+1"]
[Date "2021.12.14"]
[WhiteClock "0:00:03"]
[BlackClock "0:00:11"]

1. d4 {[%clk 0:03:00]}  Nf6 {[%clk 0:02:59]} 2. c4 {[%clk 0:03:00]}  e6 {[%clk 0:02:59]} 3. Nf3 {[%clk 0:03:00]}  d5 {[%clk 0:02:59]} 4. g3 {[%clk 0:03:01]}  Bb4+ {[%clk 0:02:59]} 5. Nbd2 {[%clk 0:03:00]}  O-O {[%clk 0:02:58]} 6. a3 {[%clk 0:02:58]}  Be7 {[%clk 0:02:56]} 7. Bg2 {[%clk 0:02:58]}  b6 {[%clk 0:02:54]} 8. O-O {[%clk 0:02:58]}  Bb7 {[%clk 0:02:54]} 9. Ne5 {[%clk 0:02:58]}  c5 {[%clk 0:02:52]} 10. cxd5 {[%clk 0:02:56]}  Bxd5 {[%clk 0:02:49]} 11. dxc5 {[%clk 0:02:52]}  Bxc5 {[%clk 0:02:44]} 12. Bxd5 {[%clk 0:02:47]}  Qxd5 {[%clk 0:02:44]} 13. Ndf3 {[%clk 0:02:48]}  Qb7 {[%clk 0:02:43]} 14. b4 {[%clk 0:02:43]}  Be7 {[%clk 0:02:43]} 15. Bb2 {[%clk 0:02:43]}  Ne4 {[%clk 0:02:37]} 16. Rc1 {[%clk 0:02:38]}  f6 {[%clk 0:02:08]} 17. Nd3 {[%clk 0:02:33]}  e5 {[%clk 0:01:57]} 18. Qb3+ {[%clk 0:02:30]}  Kh8 {[%clk 0:01:56]} 19. Rfd1 {[%clk 0:02:22]}  Nd7 {[%clk 0:01:51]} 20. Qe6 {[%clk 0:02:13]}  Rae8 {[%clk 0:01:50]} 21. Nf4 {[%clk 0:02:06]}  Ndc5 {[%clk 0:01:07]} 22. bxc5 {[%clk 0:01:43]}  Bxc5 {[%clk 0:01:08]} 23. Qd5 {[%clk 0:01:44]}  Qxd5 {[%clk 0:00:57]} 24. Nxd5 {[%clk 0:01:45]}  Nxf2 {[%clk 0:00:57]} 25. Rxc5 {[%clk 0:01:39]}  Nxd1 {[%clk 0:00:56]} 26. Rc2 {[%clk 0:01:36]}  Rc8 {[%clk 0:00:51]} 27. Rd2 {[%clk 0:01:32]}  Nxb2 {[%clk 0:00:52]} 28. Rxb2 {[%clk 0:01:33]}  Rfd8 {[%clk 0:00:52]} 29. e4 {[%clk 0:01:32]}  Rc1+ {[%clk 0:00:48]} 30. Kf2 {[%clk 0:01:31]}  Rdc8 {[%clk 0:00:48]} 31. Ne1 {[%clk 0:01:29]}  R8c4 {[%clk 0:00:45]} 32. Rd2 {[%clk 0:01:24]}  h5 {[%clk 0:00:39]} 33. Re2 {[%clk 0:01:16]}  Kh7 {[%clk 0:00:30]} 34. h4 {[%clk 0:01:12]}  b5 {[%clk 0:00:21]} 35. Ke3 {[%clk 0:00:59]}  a5 {[%clk 0:00:20]} 36. Nd3 {[%clk 0:00:58]}  Ra1 {[%clk 0:00:19]} 37. Rd2 {[%clk 0:00:20]}  Rxa3 {[%clk 0:00:17]} 38. Nb6 {[%clk 0:00:18]}  Rd4 {[%clk 0:00:16]} 39. Nd5 {[%clk 0:00:17]}  a4 {[%clk 0:00:16]} 40. Nc7 {[%clk 0:00:16]}  Rb3 {[%clk 0:00:16]} 41. Na6 {[%clk 0:00:16]}  a3 {[%clk 0:00:14]} 42. Nc5 {[%clk 0:00:15]}  Rc3 {[%clk 0:00:14]} 43. Ke2 {[%clk 0:00:11]}  b4 {[%clk 0:00:14]} 44. Na4 {[%clk 0:00:10]}  Rcxd3 {[%clk 0:00:10]} 45. Rxd3 {[%clk 0:00:03]}  Rxd3 {[%clk 0:00:11]} 46. Kxd3 {[%clk 0:00:03]}  a2 {[%clk 0:00:11]} 0-1


[Site "https://www.chess.com"]

[Event "Titled Tuesday Blitz December 14 2021"]
[White "Bacrot, Etienne"]
[Black "Atabayev, Saparmyrat"]
[WhiteFideId "605506"]
[BlackFideId "14000571"]
[WhiteElo "2673"]
[BlackElo "2483"]
[Result "0-1"]
[Round "11"]
[TimeControl "180+1"]
[Date "2021.12.14"]
[WhiteClock "0:00:02"]
[BlackClock "0:01:08"]

1. d4 {[%clk 0:03:00]}  d5 {[%clk 0:02:58]} 2. Nf3 {[%clk 0:02:59]}  Nf6 {[%clk 0:02:58]} 3. c4 {[%clk 0:02:59]}  e6 {[%clk 0:02:57]} 4. Nc3 {[%clk 0:02:59]}  Bb4 {[%clk 0:02:57]} 5. e3 {[%clk 0:02:56]}  O-O {[%clk 0:02:56]} 6. a3 {[%clk 0:02:55]}  Bxc3+ {[%clk 0:02:54]} 7. bxc3 {[%clk 0:02:56]}  b6 {[%clk 0:02:54]} 8. cxd5 {[%clk 0:02:55]}  exd5 {[%clk 0:02:53]} 9. Bd3 {[%clk 0:02:53]}  Ba6 {[%clk 0:02:52]} 10. O-O {[%clk 0:02:49]}  Qc8 {[%clk 0:02:45]} 11. a4 {[%clk 0:02:42]}  c5 {[%clk 0:02:38]} 12. dxc5 {[%clk 0:02:33]}  bxc5 {[%clk 0:02:38]} 13. Re1 {[%clk 0:02:10]}  Bxd3 {[%clk 0:02:36]} 14. Qxd3 {[%clk 0:02:10]}  Qa6 {[%clk 0:02:32]} 15. Qxa6 {[%clk 0:01:22]}  Nxa6 {[%clk 0:02:32]} 16. Ba3 {[%clk 0:01:22]}  Rab8 {[%clk 0:02:30]} 17. c4 {[%clk 0:01:17]}  dxc4 {[%clk 0:02:19]} 18. Rec1 {[%clk 0:01:16]}  Nd5 {[%clk 0:02:17]} 19. Rxc4 {[%clk 0:01:11]}  Nb6 {[%clk 0:02:17]} 20. Rg4 {[%clk 0:01:08]}  Rfc8 {[%clk 0:02:16]} 21. Bb2 {[%clk 0:01:02]}  g6 {[%clk 0:02:14]} 22. Bf6 {[%clk 0:00:35]}  Nd5 {[%clk 0:02:09]} 23. Be5 {[%clk 0:00:35]}  Rb4 {[%clk 0:02:09]} 24. h3 {[%clk 0:00:29]}  c4 {[%clk 0:01:59]} 25. e4 {[%clk 0:00:29]}  Nb6 {[%clk 0:01:46]} 26. Rh4 {[%clk 0:00:13]}  c3 {[%clk 0:01:40]} 27. Ng5 {[%clk 0:00:13]}  h5 {[%clk 0:01:40]} 28. Rf4 {[%clk 0:00:13]}  Nd7 {[%clk 0:01:22]} 29. Bd6 {[%clk 0:00:08]}  Rd4 {[%clk 0:01:16]} 30. Ba3 {[%clk 0:00:04]}  c2 {[%clk 0:01:15]} 31. Rxf7 {[%clk 0:00:02]}  Rd1+ {[%clk 0:01:14]} 32. Kh2 {[%clk 0:00:02]}  Ne5 {[%clk 0:01:08]} 0-1


[Site "https://www.chess.com"]

[Event "Titled Tuesday Blitz December 14 2021"]
[White "Bortnyk, Olexandr"]
[Black "Paravyan, David"]
[WhiteFideId "14120828"]
[BlackFideId "4194985"]
[WhiteElo "2723"]
[BlackElo "2656"]
[Result "1/2-1/2"]
[Round "11"]
[TimeControl "180+1"]
[Date "2021.12.14"]
[WhiteClock "0:00:10"]
[BlackClock "0:00:12"]

1. e4 {[%clk 0:03:00]}  c5 {[%clk 0:02:58]} 2. c3 {[%clk 0:03:00]}  d5 {[%clk 0:02:58]} 3. exd5 {[%clk 0:03:01]}  Qxd5 {[%clk 0:02:58]} 4. d4 {[%clk 0:03:02]}  Nc6 {[%clk 0:02:59]} 5. Be3 {[%clk 0:03:02]}  Bf5 {[%clk 0:02:58]} 6. dxc5 {[%clk 0:02:57]}  Nf6 {[%clk 0:02:57]} 7. Na3 {[%clk 0:02:50]}  e6 {[%clk 0:02:42]} 8. Nf3 {[%clk 0:02:41]}  O-O-O {[%clk 0:02:17]} 9. Bc4 {[%clk 0:02:35]}  Qxd1+ {[%clk 0:02:13]} 10. Rxd1 {[%clk 0:02:36]}  Rxd1+ {[%clk 0:02:13]} 11. Kxd1 {[%clk 0:02:37]}  Ng4 {[%clk 0:02:13]} 12. b4 {[%clk 0:02:24]}  a5 {[%clk 0:02:09]} 13. Nb5 {[%clk 0:02:03]}  axb4 {[%clk 0:02:06]} 14. cxb4 {[%clk 0:02:02]}  Nxb4 {[%clk 0:01:59]} 15. Bd4 {[%clk 0:01:44]}  Nc6 {[%clk 0:01:39]} 16. h3 {[%clk 0:01:44]}  Nxd4 {[%clk 0:01:37]} 17. hxg4 {[%clk 0:01:45]}  Nxf3 {[%clk 0:01:38]} 18. gxf5 {[%clk 0:01:05]}  Ne5 {[%clk 0:01:38]} 19. Bb3 {[%clk 0:00:59]}  exf5 {[%clk 0:01:35]} 20. Ke2 {[%clk 0:00:50]}  Bxc5 {[%clk 0:01:28]} 21. Rc1 {[%clk 0:00:35]}  b6 {[%clk 0:01:28]} 22. Nd6+ {[%clk 0:00:36]}  Kc7 {[%clk 0:01:16]} 23. Nxf7 {[%clk 0:00:37]}  Re8 {[%clk 0:01:14]} 24. Nxe5 {[%clk 0:00:36]}  Rxe5+ {[%clk 0:01:15]} 25. Kf3 {[%clk 0:00:36]}  Re7 {[%clk 0:00:59]} 26. Kf4 {[%clk 0:00:32]}  g6 {[%clk 0:00:53]} 27. f3 {[%clk 0:00:25]}  Re2 {[%clk 0:00:51]} 28. Rc2 {[%clk 0:00:23]}  Re1 {[%clk 0:00:51]} 29. Kg5 {[%clk 0:00:23]}  Kd6 {[%clk 0:00:46]} 30. Kh6 {[%clk 0:00:18]}  Rh1+ {[%clk 0:00:46]} 31. Kg7 {[%clk 0:00:18]}  Bd4+ {[%clk 0:00:46]} 32. Kf7 {[%clk 0:00:18]}  Rh2 {[%clk 0:00:45]} 33. Re2 {[%clk 0:00:15]}  Kc5 {[%clk 0:00:42]} 34. Rc2+ {[%clk 0:00:14]}  Kb5 {[%clk 0:00:40]} 35. Ke6 {[%clk 0:00:12]}  Bc5 {[%clk 0:00:40]} 36. Kd5 {[%clk 0:00:10]}  Kb4 {[%clk 0:00:30]} 37. Rc4+ {[%clk 0:00:09]}  Ka3 {[%clk 0:00:29]} 38. Rc2 {[%clk 0:00:10]}  h5 {[%clk 0:00:26]} 39. Ke6 {[%clk 0:00:09]}  h4 {[%clk 0:00:19]} 40. Kf6 {[%clk 0:00:09]}  h3 {[%clk 0:00:18]} 41. gxh3 {[%clk 0:00:10]}  Rxh3 {[%clk 0:00:17]} 42. f4 {[%clk 0:00:05]}  Rh4 {[%clk 0:00:14]} 43. Kxg6 {[%clk 0:00:04]}  Rxf4 {[%clk 0:00:14]} 44. Be6 {[%clk 0:00:04]}  Rf3 {[%clk 0:00:03]} 45. Bxf5 {[%clk 0:00:04]}  Rf2 {[%clk 0:00:04]} 46. Rxf2 {[%clk 0:00:02]}  Bxf2 {[%clk 0:00:05]} 47. Be6 {[%clk 0:00:03]}  Bc5 {[%clk 0:00:05]} 48. Kf5 {[%clk 0:00:04]}  Kb4 {[%clk 0:00:06]} 49. Ke4 {[%clk 0:00:05]}  Ka5 {[%clk 0:00:07]} 50. Kd3 {[%clk 0:00:05]}  Bd6 {[%clk 0:00:07]} 51. Bb3 {[%clk 0:00:06]}  Bc5 {[%clk 0:00:08]} 52. Kc4 {[%clk 0:00:07]}  Ka6 {[%clk 0:00:08]} 53. Kd5 {[%clk 0:00:07]}  Ka5 {[%clk 0:00:09]} 54. Kc6 {[%clk 0:00:07]}  Kb4 {[%clk 0:00:10]} 55. Kd5 {[%clk 0:00:08]}  Ka3 {[%clk 0:00:10]} 56. Kc6 {[%clk 0:00:08]}  Kb4 {[%clk 0:00:11]} 57. Kd5 {[%clk 0:00:09]}  Ka3 {[%clk 0:00:12]} 58. Kc6 {[%clk 0:00:10]}  Kb4 {[%clk 0:00:12]} 1/2-1/2


[Site "https://www.chess.com"]